bitfinex/quotes_SOLUSD_20220302
["timestamp","ask_amount","ask_price","bid_price","bid_amount"]
[1646179522260,2.28141529,99.124,99.01,15.1471]
[1646179522861,15.1499,99.12,99.01,15.1471]
[1646179524162,2.28141529,99.124,99.01,15.1471]
[1646179524962,2.28141529,99.124,99.005,5.0]
[1646179525164,1.83559559,99.118,99.005,5.0]
[1646179525364,101.7,99.109,99.005,5.0]
[1646179525565,1.22471466,99.106,98.941,4.038]
[1646179525767,0.81133527,99.105,98.941,28.8167]
[1646179525967,0.81133527,99.103,98.941,28.8167]
[1646179526164,101.7,99.089,98.941,28.8167]
[1646179526365,116.8593,99.06,98.95,15.1569]
[1646179526563,116.8593,99.06,98.941,28.8167]
[1646179526564,0.81133527,99.059,98.941,28.8167]
[1646179526766,0.81133527,99.059,98.95,5.0]
[1646179527264,0.81133527,99.057,98.951,4.04]
[1646179527664,0.81133527,99.057,98.95,5.0]
[1646179529273,15.1604,99.05,98.95,5.0]
[1646179529470,0.50563836,99.049,98.95,5.0]
[1646179529669,2.78705365,99.049,98.921,4.04]
[1646179529868,104.48705365,99.049,98.921,4.04]
[1646179530068,0.66336423,99.046,98.905,24.9244]
[1646179530274,101.7,99.019,98.905,24.9244]
[1646179530472,101.7,99.009,98.905,24.9244]
[1646179530674,2.06631157,99.008,98.891,36.40955012]
[1646179530869,0.66336423,99.008,98.897,5.0]
[1646179531075,0.66336423,99.008,98.88,15.1675]
[1646179531470,0.66336423,99.008,98.881,2.57366348]
[1646179531870,12.15,99.01,98.89,15.1658]
[1646179532070,4.041,99.017,98.89,15.1658]
[1646179532272,58.47677905,99.018,98.891,6.61466348]
[1646179532669,58.47677905,99.018,98.892,2.57366348]
[1646179532870,58.47677905,99.018,98.893,4.041]
[1646179533269,58.47677905,99.018,98.894,2.57366348]
[1646179533476,12.15,99.03,98.9,15.1641]
[1646179533674,12.15,99.04,98.901,2.19611669]
[1646179533871,4.041,99.062,98.91,12.15]
[1646179534270,16.191,99.09,98.911,6.10131929]
[1646179534470,43.49317078,99.048,98.912,12.7089876]
[1646179534671,43.49317078,99.048,98.913,6.29291235]
[1646179534870,43.49317078,99.048,98.948,32.71340016]
[1646179535274,43.49317078,99.048,98.95,15.1556]
[1646179536771,43.49317078,99.048,98.95,20.1556]
[1646179537974,43.49317078,99.048,98.95,5.0]
[1646179538175,43.49317078,99.048,98.931,22.7601]
[1646179538574,43.49317078,99.048,98.92,5.0]
[1646179538977,1.22656758,99.047,98.92,5.0]
[1646179539374,0.44965678,99.045,98.92,5.0]
[1646179539576,1.19706029,99.046,98.92,5.0]
[1646179539775,4.041,99.045,98.92,5.0]
[1646179539975,4.041,99.045,98.912,60.0045969]
[1646179540275,15.1631,99.04,98.912,60.0045969]
[1646179540475,12.15,99.03,98.913,4.041]
[1646179540676,59.53852384,99.029,98.913,4.041]
[1646179541278,161.23852384,99.029,98.913,4.041]
[1646179541677,59.53852384,99.029,98.912,60.0045969]
[1646179542478,101.7,99.028,98.912,60.0045969]
[1646179542678,4.041,99.027,98.912,60.0045969]
[1646179542878,4.041,99.027,98.912,24.8597]
[1646179543078,101.7,99.028,98.912,24.8597]
[1646179543982,101.7,99.028,98.91,15.1631]
[1646179543983,101.7,99.019,98.901,2.57366348]
[1646179544182,103.10962162,99.009,98.887,2.57366348]
[1646179544380,0.59631902,99.005,98.845,4.041]
[1646179544582,101.7,98.989,98.855,5.0]
[1646179544780,0.59631902,98.988,98.855,5.0]
[1646179544982,101.7,98.987,98.856,35.31715452]
[1646179545210,0.59631902,98.978,98.86,15.1689]
[1646179549886,0.67375374,98.968,98.857,5.0]
[1646179550086,2.16874774,98.968,98.857,5.0]
[1646179550285,1.20660718,98.966,98.857,5.0]
[1646179550483,0.67375374,98.965,98.845,2.57366348]
[1646179550686,51.32128381,98.964,98.846,38.13359088]
[1646179551087,51.32128381,98.964,98.847,2.57366348]
[1646179551285,51.32128381,98.964,98.85,15.172]
[1646179552287,101.7,98.959,98.847,2.57366348]
[1646179552587,0.46457357,98.958,98.847,2.57366348]
[1646179552788,0.46457357,98.958,98.85,5.0]
[1646179553188,101.7,98.959,98.85,5.0]
[1646179554788,27.3246,98.96,98.85,5.0]
[1646179555490,101.7,98.959,98.847,2.57366348]
[1646179555689,101.7,98.959,98.85,5.0]
[1646179556390,101.7,98.959,98.847,2.57366348]
[1646179556589,101.7,98.959,98.852,5.0]
[1646179556790,2.27184534,98.958,98.852,5.0]
[1646179557189,101.7,98.949,98.852,5.0]
[1646179557389,101.7,98.939,98.844,69.1364]
[1646179557990,101.7,98.937,98.825,5.0]
[1646179558190,101.7,98.929,98.813,42.39412501]
[1646179558391,0.58396339,98.928,98.81,15.1783]
[1646179558589,2.85580873,98.928,98.788,2.57366348]
[1646179558990,2.85580873,98.928,98.802,5.0]
[1646179558991,2.27184534,98.927,98.802,5.0]
[1646179559191,102.37657529,98.926,98.802,5.0]
[1646179559391,102.37657529,98.926,98.781,70.7341]
[1646179559392,101.7,98.919,98.781,70.7341]
[1646179559594,101.7,98.909,98.781,70.7341]
[1646179559791,2.16664825,98.908,98.745,2.4967795]
[1646179560094,1.81918419,98.906,98.77,5.0]
[1646179560529,0.74833118,98.897,98.77,5.0]
[1646179560721,1.24749842,98.888,98.77,5.0]
[1646179560923,15.1905,98.86,98.77,5.0]
[1646179561120,0.75271132,98.848,98.77,5.0]
[1646179561322,0.75271132,98.848,98.732,69.9054]
[1646179561526,0.75271132,98.845,98.732,69.9054]
[1646179561922,0.75271132,98.845,98.74,5.0]
[1646179562126,0.75271132,98.845,98.74,20.1889]
[1646179562324,50.04735215,98.847,98.741,1.91187786]
[1646179562524,50.04735215,98.847,98.741,4.48554134]
[1646179562925,50.04735215,98.847,98.742,2.57366348]
[1646179564029,50.04735215,98.847,98.77,15.1845]
[1646179564226,50.04735215,98.847,98.771,13.79631792]
[1646179564630,50.04735215,98.847,98.772,5.0]
[1646179565230,4.048,98.889,98.78,15.1827]
[1646179565431,4.046,98.911,98.781,2.14746578]
[1646179565630,79.1759,98.917,98.783,2.45169279]
[1646179565631,4.046,98.915,98.783,2.45169279]
[1646179565832,79.1759,98.917,98.783,2.45169279]
[1646179566033,2.27184534,98.914,98.783,2.45169279]
[1646179566233,2.27184534,98.914,98.784,2.57366348]
[1646179566234,101.7,98.899,98.784,2.57366348]
[1646179566432,0.47089834,98.897,98.741,1.92302391]
[1646179566633,0.5039015,98.895,98.741,1.92302391]
[1646179566833,101.7,98.879,98.741,1.92302391]
[1646179567039,0.5039015,98.868,98.74,48.2478]
[1646179567240,0.5039015,98.858,98.74,48.2478]
[1646179567439,101.7,98.849,98.74,48.2478]
[1646179567638,105.748,98.849,98.74,48.2478]
[1646179567840,0.45064315,98.848,98.74,48.2478]
[1646179568137,0.49337178,98.846,98.74,48.2478]
[1646179568337,0.77210259,98.844,98.74,5.0]
[1646179568535,101.7,98.829,98.74,5.0]
[1646179568736,58.5949241,98.828,98.74,5.0]
[1646179568935,101.7,98.827,98.666,2.3438263]
[1646179569139,0.77210259,98.825,98.653,2.43895314]
[1646179569336,0.77210259,98.823,98.653,2.43895314]
[1646179569538,4.049,98.824,98.653,2.43895314]
[1646179569539,0.77210259,98.808,98.707,5.0]
[1646179569936,101.7,98.806,98.707,5.0]
[1646179570136,0.77210259,98.805,98.707,5.0]
[1646179570437,3.04394793,98.805,98.707,5.0]
[1646179570636,2.27184534,98.804,98.707,5.0]
[1646179570838,0.77210259,98.803,98.707,5.0]
[1646179571642,2.27184534,98.804,98.707,5.0]
[1646179571840,0.77210259,98.803,98.707,5.0]
[1646179572241,2.27184534,98.804,98.707,5.0]
[1646179572839,101.7,98.799,98.707,5.0]
[1646179573239,2.27184534,98.798,98.707,5.0]
[1646179573441,101.7,98.799,98.707,5.0]
[1646179573841,102.1611717,98.797,98.682,23.9731]
[1646179574243,5.96734184,98.796,98.682,23.9731]
[1646179574444,0.48914929,98.794,98.683,43.82610005]
[1646179574642,151.46154221,98.778,98.683,43.82610005]
[1646179575845,49.76154221,98.778,98.684,1.95436709]
[1646179577147,103.17158844,98.769,98.62,47.2287]
[1646179577352,0.63221194,98.768,98.62,47.2287]
[1646179577545,103.1535995,98.767,98.62,47.2287]
[1646179577747,2.09002499,98.764,98.62,47.2287]
[1646179577947,101.7,98.749,98.62,47.2287]
[1646179578147,101.7,98.739,98.649,5.05e-05]
[1646179578346,1.45043984,98.728,98.649,5.05e-05]
[1646179578545,1.25146646,98.718,98.649,5.05e-05]
[1646179578745,0.70135967,98.717,98.649,5.05e-05]
[1646179578968,1.26705131,98.715,98.649,5.05e-05]
[1646179579168,0.70135967,98.708,98.649,5.05e-05]
[1646179579380,2.12994089,98.698,98.649,5.05e-05]
[1646179579668,1.2579916,98.688,98.649,5.05e-05]
[1646179579873,0.70815712,98.678,98.649,5.05e-05]
[1646179580072,0.70815712,98.676,98.649,5.05e-05]
[1646179580270,0.70815712,98.674,98.649,5.05e-05]
[1646179580471,0.70815712,98.658,98.649,5.05e-05]
[1646179580674,0.70815712,98.656,98.649,5.05e-05]
[1646179581071,0.70815712,98.654,98.509,4.054]
[1646179581276,102.5067746,98.639,98.508,4.057]
[1646179581471,101.7,98.637,98.507,23.8969]
[1646179581673,1.20439814,98.628,98.504,36.96203789]
[1646179581870,27.3823,98.62,98.504,36.96203789]
[1646179582070,45.31670483,98.619,98.505,2.34647751]
[1646179582475,45.31670483,98.619,98.506,4.057]
[1646179582673,45.31670483,98.619,98.518,2.28788061]
[1646179582873,45.31670483,98.619,98.52,10.48574462]
[1646179583872,45.31670483,98.619,98.519,4.057]
[1646179583873,101.7,98.618,98.519,4.057]
[1646179584074,103.97184534,98.618,98.488,2.57366348]
[1646179584275,22.89560066,98.617,98.474,2.17608084]
[1646179584775,45.31670483,98.619,98.475,2.57366348]
[1646179584977,0.8067746,98.618,98.476,1.88762818]
[1646179585175,45.31670483,98.619,98.476,1.88762818]
[1646179585375,22.89560066,98.617,98.476,2.1545623]
[1646179585574,0.48900103,98.616,98.476,2.1545623]
[1646179585874,2.76084637,98.616,98.476,2.1545623]
[1646179586075,0.53439825,98.614,98.476,2.1545623]
[1646179586275,52.00065063,98.599,98.476,2.1545623]
[1646179586678,0.53439825,98.597,98.465,112.9]
[1646179586876,4.059,98.596,98.461,2.02197485]
[1646179587076,101.7,98.595,98.461,2.02197485]
[1646179587275,12.15,98.58,98.475,5.0]
[1646179587477,44.98335094,98.579,98.475,5.0]
[1646179587675,0.62570309,98.578,98.475,5.0]
[1646179588578,0.62570309,98.578,98.476,42.55366727]
[1646179588777,44.98335094,98.579,98.476,42.55366727]
[1646179588977,0.62570309,98.578,98.476,42.55366727]
[1646179589179,44.98335094,98.579,98.476,42.55366727]
[1646179589782,101.7,98.578,98.475,5.0]
[1646179589981,0.62570309,98.577,98.475,5.0]
[1646179590180,12.15,98.57,98.475,5.0]
[1646179590379,4.059,98.569,98.475,5.0]
[1646179590779,4.059,98.569,98.476,39.93998579]
[1646179590981,44.98335094,98.579,98.477,2.25372101]
[1646179591381,44.98335094,98.579,98.478,2.57366348]
[1646179592584,44.98335094,98.579,98.498,7.50779672]
[1646179592783,4.059,98.609,98.498,2.00779672]
[1646179593185,4.059,98.609,98.501,2.4962819]
[1646179593382,22.89550575,98.639,98.51,12.15]
[1646179593383,2.27175043,98.639,98.51,12.15]
[1646179593583,4.057,98.638,98.51,12.15]
[1646179593882,51.46716069,98.637,98.511,2.57366348]
[1646179594084,53.74548408,98.637,98.511,2.57366348]
[1646179594286,4.057,98.636,98.511,4.81874844]
[1646179594683,2.27832339,98.635,98.484,2.57366348]
[1646179594896,2.27832339,98.635,98.41,151.88]
[1646179594897,4.057,98.634,98.482,2.40158879]
[1646179595082,101.7,98.619,98.487,5.0]
[1646179595285,101.7,98.609,98.487,5.0]
[1646179595486,12.15,98.6,98.482,2.40158879]
[1646179595682,42.8567905,98.599,98.482,41.35612226]
[1646179595982,42.8567905,98.599,98.483,1.95793282]
[1646179596192,42.8567905,98.599,98.481,23.9084]
[1646179596193,0.50744444,98.597,98.481,23.9084]
[1646179596382,0.50860886,98.589,98.481,23.9084]
[1646179596581,0.50860886,98.579,98.481,23.9084]
[1646179596785,12.15,98.58,98.481,23.9084]
[1646179596982,47.01497505,98.579,98.483,31.16475615]
[1646179597181,47.01497505,98.579,98.484,2.45345638]
[1646179597683,47.01497505,98.579,98.483,31.16475615]
[1646179598284,47.01497505,98.579,98.483,30.66475615]
[1646179598684,101.7,98.578,98.481,23.9084]
[1646179599486,47.01497505,98.579,98.482,1.99154269]
[1646179599688,47.01497505,98.579,98.483,2.48614942]
[1646179600089,47.01497505,98.579,98.487,5.0]
[1646179601087,47.01497505,98.579,98.483,2.48614942]
[1646179601488,47.01497505,98.579,98.487,5.0]
[1646179601890,2.27832339,98.613,98.488,2.57366348]
[1646179602103,4.057,98.629,98.5,12.15]
[1646179602291,4.057,98.634,98.5,12.15]
[1646179602492,4.057,98.634,98.502,5.0]
[1646179602892,58.33097496,98.633,98.503,6.01197552]
[1646179603095,4.057,98.632,98.521,2.16352196]
[1646179603294,4.057,98.632,98.523,2.10147526]
[1646179603893,58.33097496,98.633,98.523,2.10147526]
[1646179604994,112.89184983,98.632,98.523,2.10147526]
[1646179605395,2.27832339,98.631,98.512,5.0]
[1646179605597,2.27832339,98.631,98.502,2.40348831]
[1646179605598,101.7,98.629,98.502,2.40348831]
[1646179605797,101.7,98.619,98.502,2.40348831]
[1646179606096,101.7,98.619,98.5,15.2261]
[1646179606294,9.89036009,98.618,98.501,26.72132654]
[1646179606497,59.73471007,98.616,98.503,2.33294922]
[1646179607899,101.7,98.615,98.502,36.59262084]
[1646179608103,101.7,98.615,98.503,2.45158082]
[1646179608998,101.7,98.615,98.501,24.4201]
[1646179608999,2.27832339,98.614,98.501,24.4201]
[1646179609201,0.46056508,98.613,98.501,24.4201]
[1646179609400,101.7,98.609,98.501,24.4201]
[1646179609599,0.49225012,98.608,98.501,24.4201]
[1646179610000,12.15,98.61,98.502,36.22410398]
[1646179610200,101.7,98.609,98.502,36.22410398]
[1646179610401,12.15,98.61,98.502,36.22410398]
[1646179610902,12.15,98.61,98.502,2.04434175]
[1646179611101,101.7,98.609,98.502,2.04434175]
[1646179611300,12.15,98.61,98.502,2.04434175]
[1646179611501,59.73471007,98.616,98.502,2.04434175]
[1646179611502,59.73471007,98.616,98.503,2.57366348]
[1646179611901,59.73471007,98.616,98.505,2.18734928]
[1646179612306,59.73471007,98.616,98.506,2.57366348]
[1646179612603,59.73471007,98.616,98.505,2.18734928]
[1646179612802,66.38471007,98.616,98.501,24.4201]
[1646179613003,101.7,98.614,98.501,24.4201]
[1646179613204,101.7,98.609,98.501,24.4201]
[1646179613402,102.33463286,98.607,98.441,2.4905583]
[1646179613601,0.70652383,98.604,98.456,31.31166596]
[1646179613802,101.7,98.579,98.457,2.45503955]
[1646179614004,15.2361,98.58,98.457,2.45503955]
[1646179614005,12.15,98.58,98.457,2.45503955]
[1646179614202,45.31299744,98.588,98.457,2.45503955]
[1646179614401,0.44842459,98.587,98.457,2.45503955]
[1646179615003,0.44842459,98.587,98.461,2.12579859]
[1646179615203,102.14842459,98.587,98.461,2.12579859]
[1646179618017,0.53242421,98.585,98.461,2.12579859]
[1646179618217,0.53242421,98.583,98.461,2.12579859]
[1646179618521,0.53242421,98.581,98.461,2.12579859]
[1646179618715,0.53242421,98.579,98.461,2.12579859]
[1646179618916,4.059,98.578,98.461,2.12579859]
[1646179619116,0.53242421,98.577,98.461,2.12579859]
[1646179619416,0.53242421,98.585,98.461,2.12579859]
[1646179619617,101.7,98.579,98.461,2.12579859]
[1646179619818,4.059,98.579,98.472,10.13611655]
[1646179620019,45.31299744,98.588,98.472,10.13611655]
[1646179621037,45.31299744,98.588,98.49,15.2278]
[1646179621235,45.31299744,98.588,98.492,31.31166596]
[1646179621438,147.01299744,98.588,98.493,2.24394945]
[1646179621734,45.31299744,98.588,98.493,2.24394945]
[1646179624938,45.31299744,98.588,98.5,15.2259]
[1646179625137,45.31299744,98.588,98.501,2.201182]
[1646179625739,45.31299744,98.588,98.482,2.28917189]
[1646179626737,45.31299744,98.588,98.484,2.142669]
[1646179627138,45.31299744,98.588,98.485,2.57366348]
[1646179627339,45.31299744,98.588,98.487,5.0]
[1646179627542,147.01299744,98.588,98.487,5.0]
[1646179629040,147.01299744,98.588,98.472,2.57366348]
[1646179629841,147.01299744,98.588,98.46,5.0]
[1646179630042,0.50726307,98.586,98.46,5.0]
[1646179630244,0.50776606,98.584,98.46,5.0]
[1646179630444,102.95120729,98.569,98.46,5.0]
[1646179630644,103.71251297,98.569,98.451,24.5971]
[1646179630843,50.48977513,98.568,98.451,24.5971]
[1646179631044,0.6800443,98.565,98.427,5.0]
[1646179631245,0.6800443,98.548,98.427,5.0]
[1646179631453,1.88685978,98.546,98.427,5.0]
[1646179631846,0.6800443,98.544,98.427,5.0]
[1646179632046,102.3800443,98.529,98.427,5.0]
[1646179632246,101.7,98.517,98.427,5.0]
[1646179632451,0.6800443,98.516,98.427,5.0]
[1646179632647,0.6800443,98.516,98.37,15.2463]
[1646179632648,2.17039888,98.516,98.37,15.2463]
[1646179632850,0.69034156,98.514,98.371,1.95012041]
[1646179633048,2.27833038,98.515,98.361,46.9182]
[1646179633049,102.39034156,98.509,98.383,2.57366348]
[1646179633248,12.15,98.51,98.382,5.0]
[1646179633249,1.9360475,98.506,98.382,5.0]
[1646179633648,1.9360475,98.506,98.383,17.86639326]
[1646179633848,2.27833038,98.505,98.383,17.86639326]
[1646179634052,101.7,98.489,98.383,17.86639326]
[1646179634249,101.7,98.487,98.383,17.86639326]
[1646179634452,0.69034156,98.486,98.383,17.86639326]
[1646179634650,0.69034156,98.484,98.383,17.86639326]
[1646179634849,0.69034156,98.482,98.383,17.86639326]
[1646179635052,0.69034156,98.48,98.383,17.86639326]
[1646179635255,0.69034156,98.483,98.383,17.86639326]
[1646179635451,45.69838884,98.488,98.385,38.3121226]
[1646179635653,45.69838884,98.488,98.39,5.0]
[1646179636053,45.69838884,98.488,98.391,20.44005674]
[1646179636452,101.7,98.487,98.392,17.86639326]
[1646179636657,110.08,98.487,98.392,17.86639326]
[1646179636861,110.08,98.487,98.377,17.86639326]
[1646179637057,101.7,98.485,98.377,17.86639326]
[1646179637257,4.062,98.484,98.377,17.86639326]
[1646179637757,101.7,98.485,98.374,23.9998]
[1646179637758,2.27833038,98.483,98.375,17.86639326]
[1646179637955,4.062,98.482,98.375,17.86639326]
[1646179638158,2.27833038,98.483,98.375,17.86639326]
[1646179638458,101.7,98.479,98.372,5.0]
[1646179638660,12.15,98.48,98.341,24.23945104]
[1646179638661,1.240321,98.468,98.341,24.23945104]
[1646179638859,103.1988731,98.459,98.341,24.23945104]
[1646179639159,0.83150051,98.455,98.291,24.5756]
[1646179639358,4.065,98.458,98.291,24.5756]
[1646179639359,2.03909071,98.438,98.291,24.5756]
[1646179639558,103.16332546,98.427,98.292,57.39229668]
[1646179639766,0.86924297,98.408,98.226,112.9]
[1646179640059,2.18265604,98.398,98.226,112.9]
[1646179640259,4.067,98.397,98.227,1.89742812]
[1646179640460,1.4293021,98.395,98.227,1.89742812]
[1646179640658,101.7,98.379,98.228,45.48986261]
[1646179640860,101.7,98.339,98.228,45.48986261]
[1646179641058,12.15,98.33,98.228,45.48986261]
[1646179641260,8.31,98.339,98.229,1.9042279]
[1646179641459,12.15,98.36,98.229,1.9042279]
[1646179641663,4.069,98.359,98.23,2.57366348]
[1646179641860,4.069,98.369,98.23,17.84136348]
[1646179642058,12.15,98.37,98.231,2.30571169]
[1646179642258,12.15,98.37,98.251,18.82431316]
[1646179642259,56.13882679,98.369,98.251,18.82431316]
[1646179642659,6.82372721,98.368,98.251,18.82431316]
[1646179642858,4.067,98.367,98.252,2.57366348]
[1646179643058,6.34533038,98.367,98.252,2.57366348]
[1646179643263,101.7,98.366,98.233,2.57366348]
[1646179643461,4.069,98.365,98.233,2.57366348]
[1646179643658,12.15,98.35,98.233,2.57366348]
[1646179643859,12.15,98.35,98.25,5.0]
[1646179644060,53.56673156,98.349,98.251,7.05178532]
[1646179644267,62.49673156,98.349,98.251,7.05178532]
[1646179644666,61.62748859,98.349,98.251,7.05178532]
[1646179645068,2.27833038,98.348,98.251,7.05178532]
[1646179645271,0.51684059,98.347,98.202,2.44999296]
[1646179645473,0.51684059,98.345,98.227,5.0]
[1646179645671,12.15,98.34,98.227,5.0]
[1646179646072,35.51807102,98.34,98.227,5.0]
[1646179646272,35.51807102,98.34,98.228,60.3868297]
[1646179646797,12.15,98.34,98.229,2.26536746]
[1646179647388,52.69748859,98.349,98.229,2.26536746]
[1646179647790,52.69748859,98.349,98.23,2.57366348]
[1646179647990,1.49351347,98.424,98.231,1.91941474]
[1646179647991,4.069,98.367,98.231,1.91941474]
[1646179648190,17.88068644,98.386,98.231,1.91941474]
[1646179648191,4.069,98.378,98.231,1.91941474]
[1646179648390,4.069,98.385,98.232,6.64266348]
[1646179648590,4.067,98.389,98.232,6.64266348]
[1646179648791,12.15,98.39,98.272,5.0]
[1646179648991,158.34248814,98.378,98.273,3.92734607]
[1646179650192,14.87759374,98.392,98.273,3.92734607]
[1646179650392,22.10267855,98.406,98.273,3.92734607]
[1646179650393,4.067,98.409,98.281,2.06725684]
[1646179650592,3.0030927,98.413,98.297,5.0]
[1646179651191,43.93285247,98.406,98.298,54.61979119]
[1646179651393,43.93285247,98.406,98.299,2.26189728]
[1646179651592,101.7,98.405,98.299,2.26189728]
[1646179652293,101.7,98.405,98.298,54.61979119]
[1646179652493,43.93285247,98.406,98.299,2.08902864]
[1646179652893,101.7,98.405,98.307,5.0]
[1646179653094,110.79,98.405,98.307,5.0]
[1646179653298,4.065,98.404,98.307,5.0]
[1646179653495,101.7,98.399,98.282,46.3914]
[1646179653898,12.15,98.4,98.282,46.3914]
[1646179654097,17.39635306,98.401,98.283,2.48329321]
[1646179654296,22.10267855,98.403,98.284,2.06492575]
[1646179654598,43.93285247,98.406,98.284,2.06492575]
[1646179654799,43.93285247,98.406,98.285,4.067]
[1646179654996,101.7,98.405,98.29,15.2585]
[1646179655200,101.7,98.405,98.291,1.87603101]
[1646179655597,43.93285247,98.406,98.291,1.87603101]
[1646179655995,43.93285247,98.406,98.292,2.57366348]
[1646179656198,43.93285247,98.406,98.301,6.74441026]
[1646179657098,22.10267855,98.436,98.301,6.74441026]
[1646179657299,22.10267855,98.436,98.311,2.34958809]
[1646179657498,4.065,98.452,98.32,12.15]
[1646179657897,21.25997244,98.456,98.32,12.15]
[1646179658098,76.37358623,98.456,98.321,53.09639727]
[1646179658398,22.10267855,98.484,98.321,53.09639727]
[1646179658399,14.05791631,98.483,98.323,2.30393181]
[1646179658597,14.05791631,98.483,98.341,2.05484692]
[1646179658803,14.05791631,98.483,98.352,5.0]
[1646179659397,47.57675511,98.482,98.354,13.79144198]
[1646179659598,47.57675511,98.482,98.361,1.91939442]
[1646179659805,47.57675511,98.482,98.37,12.15]
[1646179659998,47.57675511,98.482,98.352,5.0]
[1646179659999,47.57675511,98.482,98.38,12.15]
[1646179660600,47.57675511,98.482,98.391,2.31009952]
[1646179660801,47.57675511,98.482,98.392,13.79144198]
[1646179662001,101.7,98.481,98.373,2.36726909]
[1646179662205,103.99131281,98.481,98.373,2.36726909]
[1646179662405,101.65763,98.479,98.37,12.15]
[1646179662902,101.65763,98.477,98.373,46.86236382]
[1646179663302,47.57675511,98.482,98.374,2.47433818]
[1646179663503,47.57675511,98.482,98.374,5.04800166]
[1646179663805,47.57675511,98.482,98.375,2.57366348]
[1646179664006,47.57675511,98.482,98.38,12.15]
[1646179664404,47.57675511,98.482,98.381,2.57366348]
[1646179667811,47.57675511,98.482,98.392,17.45181195]
[1646179668110,47.57675511,98.482,98.393,2.41696211]
[1646179668711,101.7,98.481,98.392,17.45181195]
[1646179669311,47.57675511,98.482,98.392,17.45181195]
[1646179670115,47.57675511,98.482,98.393,2.25092725]
[1646179670316,47.57675511,98.482,98.392,17.45181195]
[1646179670914,23.55119439,98.481,98.392,17.45181195]
[1646179671114,113.85,98.48,98.392,17.45181195]
[1646179675615,101.7,98.489,98.392,17.45181195]
[1646179675815,14.09238377,98.508,98.393,2.14919891]
[1646179676017,27.2984,98.527,98.393,2.14919891]
[1646179676018,5.0,98.515,98.393,2.14919891]
[1646179676214,5.0,98.515,98.394,2.57366348]
[1646179676615,48.2821102,98.514,98.394,2.57366348]
[1646179677019,48.2821102,98.514,98.42,15.239]
[1646179677919,101.7,98.513,98.42,15.239]
[1646179678116,48.2821102,98.514,98.42,15.239]
[1646179678318,23.07130578,98.513,98.42,15.239]
[1646179678919,101.7,98.512,98.42,15.239]
[1646179679117,101.7,98.512,98.418,46.86236382]
[1646179679318,101.7,98.513,98.418,46.86236382]
[1646179679921,101.7,98.511,98.418,46.86236382]
[1646179680318,101.7,98.509,98.418,46.86236382]
[1646179680719,105.29662318,98.509,98.418,46.86236382]
[1646179680920,101.7,98.507,98.4,15.2415]
[1646179681121,102.16538625,98.507,98.381,2.45536894]
[1646179681323,0.46538625,98.504,98.381,2.45536894]
[1646179681724,101.7,98.499,98.377,5.0]
[1646179681923,101.7,98.497,98.395,60.65933562]
[1646179682325,101.7,98.495,98.395,60.65933562]
[1646179682527,0.59390813,98.494,98.395,60.65933562]
[1646179682726,0.59390813,98.488,98.395,60.65933562]
[1646179682928,5.0,98.485,98.395,60.65933562]
[1646179683131,0.59390813,98.484,98.365,5.0]
[1646179683331,0.59390813,98.478,98.365,5.0]
[1646179683731,101.7,98.476,98.365,5.0]
[1646179683932,0.59390813,98.447,98.364,47.3039]
[1646179684231,101.7,98.446,98.364,47.3039]
[1646179684532,0.59390813,98.445,98.364,47.3039]
[1646179687336,49.39348392,98.447,98.364,47.3039]
[1646179688751,12.15,98.46,98.364,47.3039]
[1646179688954,12.15,98.48,98.364,47.3039]
[1646179689252,4.064,98.488,98.365,4.85102842]
[1646179689653,4.064,98.488,98.366,2.57366348]
[1646179689855,48.161618,98.487,98.366,2.57366348]
[1646179690053,101.7,98.486,98.37,15.2461]
[1646179690655,101.7,98.484,98.37,15.2461]
[1646179691056,3.59662318,98.483,98.37,15.2461]
[1646179691456,105.29662318,98.483,98.37,15.2461]
[1646179691856,3.59662318,98.483,98.371,2.57366348]
[1646179692056,48.161618,98.487,98.39,15.2424]
[1646179692256,48.161618,98.487,98.391,8.46644522]
[1646179692455,101.7,98.486,98.391,11.0401087]